Cogmind - Beta 15 @@@ ROGUE MODE // 2025.06.02 @ 19:53:56 Player: jumpy Result: Destroyed by EX-DEC with AWS/EX-DEC Performance ------------- Evolutions (0) 0 Regions Visited (3) 600 Robots Destroyed (28) 140 Value Destroyed (241) 241 Prototype IDs (23) 460 Alien Tech Used (0) 0 Bonus (256) 256 TOTAL SCORE: 1697 Bonus ------- Aligned with FarCom 300 Friendly Fire -44 Cogmind --------- Core Integrity 0/250 Matter 170/300 Energy 245/250 System Corruption 3% Temperature Cool (56) Movement Core (200) Ox3 Location -10/Exiles Parts ------- > --- POWER (1) -------- Ion Engine > --- PROPULSION (2) --- (None) > --- UTILITY (2) ------ Small Storage Unit > --- WEAPON (2) ------- Small Laser > --- INVENTORY (8) ---- Wheel Wheel Improved Terrain Scanner Seismic Detector Seismic Detector Mining Laser Peak State ------------ > --- POWER ------------ Ion Engine > --- PROPULSION ------- Light Treads Light Treads > --- UTILITY ---------- Small Storage Unit Cloak of Protection > --- WEAPON ----------- Small Laser Grenade Launcher > --- INVENTORY -------- Wheel Wheel Improved Terrain Scanner Seismic Detector Seismic Detector Mining Laser [Rating: 14] Favorites ----------- Power Ion Engine Engine Ion Engine Propulsion Light Treads Treads Light Treads Utility Small Storage Unit Device Seismic Detector Storage Small Storage Unit Weapon Light Assault Rifle Energy Gun Small Laser Ballistic Gun Light Assault Rifle Launcher Grenade Launcher Build | -11 -10 -10 -10 ------- Run | Yrd Mat Min Exi Slots Evolved . | . . . . Power . | . . . . Propulsion . | . . . . Utility . | . . . . Weapon . | . . . . Parts Attached 11 | 7 . 2 2 Power 2 | 1 . . 1 Engine 2 | 1 . . 1 Core . | . . . . Reactor . | . . . . Propulsion 2 | 2 . . . Treads 2 | 2 . . . Leg . | . . . . Wheel . | . . . . Hover . | . . . . Flight . | . . . . Utility 3 | 2 . . 1 Device 2 | 1 . . 1 Storage 1 | 1 . . . Processor . | . . . . Hackware . | . . . . Protection . | . . . . Artifact . | . . . . Weapon 4 | 2 . 2 . Energy Gun 1 | . . 1 . Energy Cannon . | . . . . Ballistic Gun 2 | 2 . . . Ballistic Cannon . | . . . . Launcher 1 | . . 1 . Special Weapon . | . . . . Impact Weapon . | . . . . Slashing Weapon . | . . . . Piercing Weapon . | . . . . Special Melee Weapon . | . . . . Unidentified Prototypes . | . . . . Parts Lost 5 | . . 1 4 Power 1 | . . 1 . Propulsion 2 | . . . 2 Utility 1 | . . . 1 Weapon 1 | . . . 1 Highest Loss Streak 4 | . . 1 4 To Critical Strikes . | . . . . Average Backups 6 | 4 7 7 5 Power . | . 1 1 . Propulsion 1 | 1 2 2 2 Utility 1 | . 2 2 2 Weapon 1 | 1 2 2 1 Tool/Special . | . . . . Unused Backups 8 | 3 . . 5 Power . | . . . . Propulsion 4 | 2 . . 2 Utility 2 | . . . 2 Weapon 2 | 1 . . 1 Tool/Special . | . . . . Average Slot Usage (%) 94 | . 100 95 90 Engine 8 | . 14 9 5 Treads 28 | . 28 28 28 Device 14 | . 14 14 14 Storage 14 | . 14 14 14 Energy Gun 8 | . . 2 14 Ballistic Gun 11 | . 28 21 . Launcher 8 | . . 3 13 Peak Build Rating 14 | 7 8 8 14 Average Rating 7 | 5 7 7 8 On Entrance 5 | . 7 8 6 Naked Turns . | . . . . Heaviest Build 22 | 13 13 13 22 Greatest Support 40 | 40 40 40 40 Greatest Overweight (x) 3 | . . . 3 Average Overweight (x) . | . . . . Largest Inventory Capacity 8 | 8 8 8 8 Average Capacity 7 | 7 8 8 8 Most Carried 8 | 7 8 8 6 Average Carried 6 | 4 7 7 5 Final Capacity 8 | 8 8 8 8 Final Carried 8 | 7 8 6 6 Class Distribution -------------------- 100% | Mutant Dominant Class ---------------- Mutant | -10/Materials Mutant | -10/Mines Mutant | -10/Exiles Resources | -11 -10 -10 -10 ----------- Run | Yrd Mat Min Exi Matter Collected 386 | 326 42 18 . Remotely . | . . . . Salvage Created 573 | 256 147 107 63 Parts 45 | 20 12 8 5 Haulers Intercepted . | . . . . Recyclers Shooed 1 | . . 1 . Parts Field Recycled . | . . . . Retrieved Matter . | . . . . Parts Self-Destructed . | . . . . Prevented . | . . . . Kills | -11 -10 -10 -10 ------- Run | Yrd Mat Min Exi Combat Hostiles Destroyed 13 | . 7 6 . Guns 10 | . 7 3 . AOE 3 | . . 3 . Classes Destroyed 6 | 3 2 . 1 Worker 3 | 1 1 1 . Tunneler 6 | 6 . . . Recycler 2 | 1 . 1 . Swarmer 12 | . 6 6 . Grunt 1 | . 1 . . Zionite 4 | . . . 4 Best Kill Streak 4 | 1 4 4 3 Combat Bots Only 3 | . 3 3 . Max Kills in Single Turn 3 | 1 2 3 2 Gunslinging 1 | . 1 . . Exploded 3 | . . 3 . Melee . | . . . . Uniques/NPCs Destroyed . | . . . . Combat | -11 -10 -10 -10 -------- Run | Yrd Mat Min Exi Hostile Shots Fired 133 | . 40 36 57 Missed 26 | . 10 7 9 Hits 107 | . 30 29 48 Projectile 107 | . 30 29 48 Critical Strikes 4 | . 1 . 3 Damage Taken 1276 | . 258 265 753 Core 252 | . 66 13 173 Absorbed by Shields . | . . . . Core Remaining (%) 100 | 100 . . . Volleys Fired 72 | 28 22 11 11 Largest 2 | 2 2 2 2 Hottest 70 | 40 40 40 70 Shots Fired 138 | 56 44 19 19 Gun 127 | 56 44 16 11 Cannon . | . . . . Launcher 11 | . . 3 8 Special . | . . . . Kinetic 116 | 56 44 16 . Thermal 11 | . . . 11 Explosive 11 | . . 3 8 Electromagnetic . | . . . . Robot Hit Streak 7 | 4 4 6 7 Robot Miss Streak 5 | 5 4 3 2 Penetration Max . | . . . . Secondary Targets 3 | . 2 1 . Max Gunslinging Chain 1 | . 1 1 . Shots Hit Robots 71 | 31 18 11 11 Core Hits 45 | 16 11 10 8 Critical Kills . | . . . . Critical Parts Destroyed 1 | 1 . . . Critical Strikes 1 | 1 . . . Destroy 1 | 1 . . . Melee Attacks . | . . . . Impact . | . . . . Slashing . | . . . . Piercing . | . . . . Sneak Attacks . | . . . . Combat Hostiles . | . . . . Follow-up Attacks . | . . . . Damage Inflicted 992 | 229 158 266 339 Guns 543 | 229 158 79 77 Cannons . | . . . . Explosions 438 | . . 176 262 Melee . | . . . . Ramming 11 | . . 11 . Kinetic 466 | 229 158 79 . Thermal 77 | . . . 77 Explosive 438 | . . 176 262 Electromagnetic . | . . . . Impact . | . . . . Slashing . | . . . . Piercing . | . . . . Highest Corruption 3 | . . . 3 Average Corruption 2 | . . . 2 Corruption Purged . | . . . . Corruption Blocked . | . . . . Effects 1 | . . . 1 Energy Discharges 1 | . . . 1 Overload Shots . | . . . . Overflow Damage 30 | . . 30 . Projectiles . | . . . . Explosions 30 | . . 30 . Melee . | . . . . Knockbacks . | . . . . Impact . | . . . . Kinetic . | . . . . Secondary . | . . . . Self-Inflicted Damage 114 | . . 36 78 Shots 5 | . . 1 4 Rammed 2 | . . 2 . Targets Rammed 3 | . . 3 . Kicked . | . . . . Crushed 1 | . . 1 . Highest Temperature 76 | . 12 . 76 Average Temperature 23 | . 8 . 26 Received Heat Transfer 70 | . 30 . 40 Siege Activations . | . . . . Martial Activations . | . . . . Shielding Activations . | . . . . Robots Disrupted . | . . . . Combat Hostiles . | . . . . Robots Corrupted . | . . . . Combat Hostiles . | . . . . Parts Fried . | . . . . Impact Corruptions . | . . . . Robots Melted . | . . . . Combat Hostiles . | . . . . Parts Melted . | . . . . Heat Transferred 175 | . . . 175 Parts Sabotaged . | . . . . Parts Stolen . | . . . . Parts Stripped . | . . . . Power Chain Reactions . | . . . . Alert | -11 -10 -10 -10 ------- Run | Yrd Mat Min Exi Maximum Alert Level . | . . . . Low Security (%) 100 | 100 100 100 . Level 1 . | . . . . Level 2 . | . . . . Level 3 . | . . . . Level 4 . | . . . . Level 5 . | . . . . High Security . | . . . . Max Security . | . . . . Peak Influence 128 | 5 90 128 . Initial 19 | . . 19 . Average 26 | . 45 59 . Influence Increases 384 | 40 175 169 . Destroy 0b10 Robot/C 260 | . 140 120 . Destroy 0b10 Robot/NC 55 | 40 5 10 . Destroy Leader 50 | . 30 20 . Destroy Structure 19 | . . 19 . Influence Decreases 384 | 40 125 111 108 Entered New Map 139 | . . 31 108 Time Decay 235 | 40 125 70 . Lost Part 10 | . . 10 . Squads Dispatched 2 | . 2 . . Investigation . | . . . . Extermination . | . . . . Reinforcement 2 | . 2 . . Assault . | . . . . Garrison . | . . . . Intercept . | . . . . Searches Triggered . | . . . . Construction Impeded . | . . . . Haulers Reinforced . | . . . . Active Scanning Responses . | . . . . Cargo Convoy Interrupts . | . . . . Stealth | -11 -10 -10 -10 --------- Run | Yrd Mat Min Exi Distress Signals 1 | . 1 . . Communications Jammed . | . . . . Distress Signals . | . . . . Times Spotted 25 | . 9 6 10 Peak Tracking Total 12 | . 3 3 12 Tactical Retreats . | . . . . Traps | -11 -10 -10 -10 ------- Run | Yrd Mat Min Exi Traps Triggered . | . . . . Indirectly . | . . . . Trap Hack Attempts . | . . . . Triggered . | . . . . Disarmed . | . . . . Reprogrammed . | . . . . Reused . | . . . . Traps Extracted . | . . . . Installed . | . . . . Triggered . | . . . . Machines | -11 -10 -10 -10 ---------- Run | Yrd Mat Min Exi Machines Disabled 4 | . . . 4 Max in Single Turn 3 | . . . 3 Machines Repaired . | . . . . Machines Dismantled . | . . . . Machines Sabotaged . | . . . . Overloaded Fab Kills . | . . . . Hacking | -11 -10 -10 -10 --------- Run | Yrd Mat Min Exi Machines Accessed 3 | . 2 . 1 Terminals 2 | . 2 . . Fabricators . | . . . . Repair Stations . | . . . . Recycling Units . | . . . . Scanalyzers . | . . . . Garrison Access . | . . . . Total Hacks 6 | . 5 . 1 Successful 4 | . 3 . 1 Failed 2 | . 2 . . Catastrophic . | . . . . Database Lockouts . | . . . . Manual 6 | . 5 . 1 Terminals 5 | . 5 . . Fabricators . | . . . . Repair Stations . | . . . . Recycling Units . | . . . . Scanalyzers . | . . . . Garrison Access . | . . . . Terminal Hacks 1 | . . . 1 Proto ID Catalog 1 | . . . 1 Fabricator Hacks . | . . . . Repair Station Hacks . | . . . . Recycling Unit Hacks . | . . . . Scanalyzer . | . . . . Garrison Access Hacks . | . . . . Unauthorized Hacks 3 | . 3 . . Terminals 3 | . 3 . . Botnet 2 | . 2 . . Skim 1 | . 1 . . Fabricators . | . . . . Repair Stations . | . . . . Recycling Units . | . . . . Scanalyzers . | . . . . Garrison Access . | . . . . Data Cores Recovered . | . . . . Used . | . . . . Hacking Detections 1 | . 1 . . Full Trace Events . | . . . . Feedback Events . | . . . . Feedback Blocked . | . . . . Robot Schematics Acquired . | . . . . Robots Built . | . . . . Authchips . | . . . . Time . | . . . . Total Robot Build Rating . | . . . . Part Schematics Acquired . | . . . . Parts Built . | . . . . Authchips . | . . . . Time . | . . . . Total Part Build Rating . | . . . . Parts Repaired . | . . . . Time . | . . . . Parts Recycled . | . . . . Recycled Matter . | . . . . Retrieved Matter . | . . . . Retrieved Components . | . . . . Parts Scanalyzed . | . . . . Part Schematics Acquired . | . . . . Parts Damaged . | . . . . Bothacking | -11 -10 -10 -10 ------------ Run | Yrd Mat Min Exi Used RIF Installer . | . . . . Robots Hacked . | . . . . Non-combat . | . . . . Combat . | . . . . Robot Hacks Applied . | . . . . Relay Couplers Released . | . . . . Fabnet Peak Effective % . | . . . . Robots Rewired . | . . . . Allies Hacked . | . . . . Hacks Repelled . | . . . . Allies | -11 -10 -10 -10 -------- Run | Yrd Mat Min Exi Total Allies . | . . . . Largest Group . | . . . . Highest-Rated Group . | . . . . Highest-Rated Ally . | . . . . Total Orders . | . . . . Ally Attacks . | . . . . Total Damage . | . . . . Kills . | . . . . Allies Corrupted . | . . . . Allies Melted . | . . . . Intel | -11 -10 -10 -10 ------- Run | Yrd Mat Min Exi Active Infowar (turns) 908 | 107 273 147 381 Seismic 880 | 107 273 147 353 Cloaking 28 | . . . 28 Robot Analysis Total . | . . . . Derelict Logs Recovered 1 | . . 1 . Drone Launches . | . . . . Drone Recoveries . | . . . . Exploration | -11 -10 -10 -10 ------------- Run | Yrd Mat Min Exi Turns Passed 1355 | 379 273 147 556 Spaces Moved 712 | 184 134 69 325 Core 9 | 8 . . 1 Treads 703 | 176 134 69 324 Legs . | . . . . Wheels . | . . . . Hover . | . . . . Flight . | . . . . Fastest Speed 50 | 50 160 160 160 Average Speed 158 | 155 160 160 160 Slowest Speed 200 | 160 160 160 200 Overloaded Moves . | . . . . Propulsion Burnouts . | . . . . Robots Hopped . | . . . . Potential Cave-ins . | . . . . Cave-ins Triggered . | . . . . Exploration Rate (%) 33 | 13 29 27 66 Regions Visited 3 Branch Regions 2 Pre-discovered Areas 1 | . . 1 . Known Exits Taken 1 | . . 1 . Unknown Exits Taken 2 | 1 1 . . Scrap Searched . | . . . . Spaces Dug . | . . . . Terrain Destroyed 50 | . . 19 31 Melee . | . . . . Projectile . | . . . . AOE 50 | . . 19 31 Terrain Rammed . | . . . . Walls Destroyed . | . . . . Machines Disabled . | . . . . Actions | -11 -10 -10 -10 --------- Run | Yrd Mat Min Exi Total 820 | 231 158 89 342 Wait 8 | . 2 3 3 Move 709 | 183 133 68 325 Hop . | . . . . Pick Up 11 | 10 1 . . Fast Attach 8 | 7 . . 1 Attach 2 | . . 1 1 Detach 1 | . . . 1 Swap 1 | . . 1 . Drop 5 | 3 . 2 . Fire 72 | 28 22 11 11 Melee . | . . . . Ram . | . . . . Kick . | . . . . Crush 3 | . . 3 . Escape Stasis . | . . . . Rewire . | . . . . Trap . | . . . . Miscellaneous . | . . . . Route ------- -11/Scrapyard -10/Materials -10/Mines (discovered 2 exits: [*Mat] / *Exi) -10/Exiles History --------- Turn | Location | Event 10 | -11/Scrapyard | Discovered new exit (range 15) 380 | -11/Scrapyard | Entered Materials 381 | -10/Materials | Build established: Mutant 549 | -10/Materials | Discovered new exit (range 16) 653 | -10/Materials | Entered Mines 681 | -10/Mines | Identified exit to Exiles 710 | -10/Mines | Learned location of Storage (-9) 775 | -10/Mines | Discovered new exit (range 5) 791 | -10/Mines | Deemed a non-threat by the Exiles lab entrance 800 | -10/Mines | Entered Exiles 840 | -10/Exiles | Met 8R-AWN 868 | -10/Exiles | Met EX-HEX 928 | -10/Exiles | Met EX-BIN 967 | -10/Exiles | Met EX-DEC 1092 | -10/Exiles | Aligned with FarCom system 1093 | -10/Exiles | Given EX-Vault access code 1131 | -10/Exiles | Opened EX-Vault 1154 | -10/Exiles | Found Cloak of Protection 1194 | -10/Exiles | Warned to stay clear of 0b10 Research branches 1313 | -10/Exiles | Visited The Gauntlet 1321 | -10/Exiles | Attacked by the Exiles 1344 | -10/Exiles | Core integrity fell below 50% 1354 | -10/Exiles | Core integrity fell below 20% 1356 | -10/Exiles | Destroyed by EX-DEC with AWS/EX-DEC Last Messages --------------- change it right after you leave. Most certainly not to something like 1234 which I did last time as a little joke and some thief managed to sneak in here and steal a few of HEX's prototypes. 01320_ Testing Chamber Shield damaged. 01320_ DK-RAY destroyed. 01320_ Testing Apparatus damaged. 01320_ Machine disabled. 01321_ EXILES: Hostile robot within lab perimeter. Defensive protocols time, folks! 01326_ J5-HVA destroyed. 01329_ 5L-KAT destroyed. 01329_ W1-DM0 destroyed. 01329_ Machine disabled. 01341_ The unstable cave ceiling collapses. 01346_ Destroyed Asb. F-torch. 01347_ System corrupted: Energy discharge (-70). 01347_ EX-BIN: "I just want to science!" 01347_ Grenade Launcher destroyed. 01354_ Lgt. Treads destroyed. 01355_ Cloak of Protection destroyed. Map ----- +----------------------------------------------------+ | ??????????#"" "?"" | | ??????????##"" | | ???????????#"""" | | ???????????## | | ????????????#" " "" | | ????????????#"""" ""## ##""" " " " | | ????????????#"" ""##?# ?#####""" "" | | ????????????#" """"##??#???????###"""" | | ????????????#""" """#?????????????##### | | ????????????## ""#??????????????????? | | ?????????????#"" """##??????????????????? | | ?????????????##""" ##???????????????????? | | ??????????????##"""" ##????????????????????? | | ???????????????### #?????????????????????? | | ?????????????????##### ##?????????????????????? | | ?????????????????????## #??????????????????????? | | ?????????????????????# #??????????????????????? | | ?????????????????????# a ??????????????????????? | | ?????????????????????# ??????????????????????? | | ?????????????????????## a#??????????????????????? | | ?????????????????????# a ??????????????????????? | | ?????????????????????# ###????????????????????? | | ????????????? ""???## #????????????????????? | | ?????????????" ""??# a #????????????????????? | | ?????????????" ""## c #????????????????????? | | ????????????##"""# c@ ## ###???????????????? | | ???????????""" " c " ""# "?????????????? | | ???????????"" =% a a %" "???????????? | | ???????? ""??????????? | | ???????? " "#?????????? | | ???????? % """??????????? | | ????????? = "" "???????????? | | ?????????"""" " """" """""# """"??????????? | | ???????????###"""########"""######?###???????????? | | ?????????????" ?????????" "????????????????????? | | ????????????????????????" """???????????????????? | | ????????????????????????""""""???????????????????? | | ????????????????????????" ""?????????????????????? | | ?????????????????????????"???????????????????????? | | ?????????????????????????????????????????????????? | | ?????????????????????????????????????????????????? | | ?????????????????????????????????????????????????? | | ?????????????????????????????????????????????????? | | ?????????????????????????????????????????????????? | | | | | | | | | | | | | +----------------------------------------------------+ Best States ------------- Heat Dissipation 25 Energy Generation 10 Energy Capacity 250 Matter Stores 300 Matter Capacity 300 Sight Range 16 Terrain Scan Density 10 Cloak Strength 5 Evasion (%) 40 Recoil Reduction 2 Item Schematics ----------------- None Robot Schematics ------------------ None Fabricated ------------ Nothing Repaired ---------- Nothing Alien Tech Used ----------------- None Achievements -------------- None Challenges ------------ None Game ------ Seed SuperchargedCorruptionScythe Manual? 0 Play Time 00:08:33 Cumulative 119.6 hours Start 2025.06.02 @ 19:47:20 End 2025.06.02 @ 19:53:56 Sessions 1 Manual Loads 0 Difficulty Rogue Special Mode None Game No. 309 Rogue 309 Adventurer 0 Explorer 0 Win Type - Total 2 Types 2/0/0/0/0/0/0/0/0/0 Lore% 60 Gallery% 52 Achievement% 45 Wizard Run 0 Options --------- Layout 0 ASCII 0 Keyboard 0 Movement Numpad Keybinds 0 Fullscreen 2 Font 18/Terminus Map View 76x50 Zoom Use 0% Tactical HUD 1 Map Filters NONE Filters NONE Steam 1 RUN: a74309f0-c38e-4f8e-963a-cf8a341a0ff8